[Event "Titled Tuesday Blitz August 3 2021"]
[White "Zverev, Lev"]
[Black "Ponikarovsky, Alexey"]
[WhiteFideId "24250775"]
[BlackFideId "4122887"]
[WhiteElo "2109"]
[BlackElo "1944"]
[Result "1-0"]
[Round "08"]
[TimeControl "180+1"]
[Date "2021.08.03"]
[WhiteClock "0:01:29"]
[BlackClock "0:02:33"]

1. e4 {[%clk 0:03:00]}  c5 {[%clk 0:02:58]} 2. Nf3 {[%clk 0:02:59]}  a6 {[%clk 0:02:59]} 3. c4 {[%clk 0:02:54]}  Nc6 {[%clk 0:02:59]} 4. d4 {[%clk 0:02:52]}  cxd4 {[%clk 0:02:59]} 5. Nxd4 {[%clk 0:02:53]}  e5 {[%clk 0:03:00]} 6. Nf5 {[%clk 0:02:49]}  d6 {[%clk 0:03:00]} 7. Ne3 {[%clk 0:02:47]}  Nf6 {[%clk 0:03:01]} 8. Nc3 {[%clk 0:02:48]}  Be7 {[%clk 0:03:01]} 9. Be2 {[%clk 0:02:44]}  O-O {[%clk 0:03:02]} 10. O-O {[%clk 0:02:44]}  Be6 {[%clk 0:03:03]} 11. Ned5 {[%clk 0:02:41]}  h6 {[%clk 0:03:04]} 12. Be3 {[%clk 0:02:39]}  Rc8 {[%clk 0:03:04]} 13. f3 {[%clk 0:02:37]}  Qd7 {[%clk 0:03:04]} 14. Nb6 {[%clk 0:02:35]}  Qd8 {[%clk 0:03:04]} 15. Nxc8 {[%clk 0:02:35]}  Qxc8 {[%clk 0:03:05]} 16. b3 {[%clk 0:02:33]}  Rd8 {[%clk 0:03:04]} 17. Nd5 {[%clk 0:02:32]}  Bxd5 {[%clk 0:03:04]} 18. cxd5 {[%clk 0:02:29]}  Nb8 {[%clk 0:03:05]} 19. Bb6 {[%clk 0:02:26]}  Rf8 {[%clk 0:03:04]} 20. Rc1 {[%clk 0:02:26]}  Qe8 {[%clk 0:03:02]} 21. Qd2 {[%clk 0:02:22]}  Nbd7 {[%clk 0:02:50]} 22. Be3 {[%clk 0:02:22]}  Nh7 {[%clk 0:02:50]} 23. Rc7 {[%clk 0:02:15]}  Bg5 {[%clk 0:02:49]} 24. Bxg5 {[%clk 0:02:14]}  Nxg5 {[%clk 0:02:48]} 25. b4 {[%clk 0:02:12]}  f5 {[%clk 0:02:46]} 26. exf5 {[%clk 0:02:09]}  Rxf5 {[%clk 0:02:47]} 27. Rfc1 {[%clk 0:02:09]}  Rf8 {[%clk 0:02:47]} 28. Rxb7 {[%clk 0:02:09]}  Nf6 {[%clk 0:02:44]} 29. Rcc7 {[%clk 0:02:01]}  Rf7 {[%clk 0:02:44]} 30. Rxf7 {[%clk 0:02:00]}  Nxf7 {[%clk 0:02:43]} 31. Bxa6 {[%clk 0:02:00]}  e4 {[%clk 0:02:41]} 32. fxe4 {[%clk 0:01:58]}  Ne5 {[%clk 0:02:39]} 33. Qc2 {[%clk 0:01:42]}  Qg6 {[%clk 0:02:37]} 34. Be2 {[%clk 0:01:34]}  Qg5 {[%clk 0:02:36]} 35. Qc8+ {[%clk 0:01:29]}  Kh7 {[%clk 0:02:33]} 36. Qf5+ {[%clk 0:01:29]} 1-0


[Site "https://www.chess.com"]

[Event "Titled Tuesday Blitz August 3 2021"]
[White "ketster"]
[Black "Yaran, Siar"]
[BlackFideId "6323006"]
[WhiteElo "2394"]
[BlackElo "1977"]
[Result "0-1"]
[Round "08"]
[TimeControl "180+1"]
[Date "2021.08.03"]
[WhiteClock "0:00:12"]
[BlackClock "0:00:09"]

1. Nf3 {[%clk 0:02:59]}  Nf6 {[%clk 0:02:59]} 2. g3 {[%clk 0:03:00]}  e6 {[%clk 0:03:00]} 3. c4 {[%clk 0:03:00]}  d5 {[%clk 0:02:59]} 4. Bg2 {[%clk 0:03:00]}  Be7 {[%clk 0:03:00]} 5. O-O {[%clk 0:03:00]}  O-O {[%clk 0:03:00]} 6. b3 {[%clk 0:03:00]}  b6 {[%clk 0:02:59]} 7. Bb2 {[%clk 0:03:00]}  Bb7 {[%clk 0:02:59]} 8. Ne5 {[%clk 0:02:59]}  Nbd7 {[%clk 0:02:55]} 9. d4 {[%clk 0:02:59]}  Qc8 {[%clk 0:02:51]} 10. Nd2 {[%clk 0:02:57]}  Nxe5 {[%clk 0:02:27]} 11. dxe5 {[%clk 0:02:53]}  Nd7 {[%clk 0:02:28]} 12. cxd5 {[%clk 0:02:44]}  Bxd5 {[%clk 0:02:26]} 13. Bxd5 {[%clk 0:02:32]}  exd5 {[%clk 0:02:25]} 14. Nf3 {[%clk 0:02:33]}  Qb7 {[%clk 0:02:21]} 15. Rc1 {[%clk 0:02:31]}  c5 {[%clk 0:02:16]} 16. e3 {[%clk 0:02:29]}  Rfe8 {[%clk 0:02:14]} 17. Qd3 {[%clk 0:02:24]}  Rad8 {[%clk 0:02:13]} 18. Nd2 {[%clk 0:02:20]}  Nf8 {[%clk 0:02:13]} 19. f4 {[%clk 0:02:19]}  b5 {[%clk 0:02:01]} 20. f5 {[%clk 0:02:01]}  c4 {[%clk 0:01:46]} 21. Qe2 {[%clk 0:01:54]}  Bc5 {[%clk 0:01:39]} 22. Bd4 {[%clk 0:01:46]}  Qb6 {[%clk 0:01:36]} 23. Nf3 {[%clk 0:01:43]}  Nd7 {[%clk 0:01:31]} 24. Qf2 {[%clk 0:01:38]}  Nxe5 {[%clk 0:01:20]} 25. Nxe5 {[%clk 0:01:30]}  Rxe5 {[%clk 0:01:19]} 26. f6 {[%clk 0:01:26]}  g6 {[%clk 0:01:03]} 27. Qf4 {[%clk 0:00:52]}  Bxd4 {[%clk 0:00:30]} 28. exd4 {[%clk 0:00:49]}  Rf5 {[%clk 0:00:27]} 29. Qh4 {[%clk 0:00:39]}  Rxf1+ {[%clk 0:00:24]} 30. Rxf1 {[%clk 0:00:39]}  h5 {[%clk 0:00:23]} 31. Qf4 {[%clk 0:00:36]}  Qd6 {[%clk 0:00:15]} 32. Qh6 {[%clk 0:00:30]}  Qf8 {[%clk 0:00:15]} 33. Qg5 {[%clk 0:00:30]}  c3 {[%clk 0:00:13]} 34. g4 {[%clk 0:00:22]}  hxg4 {[%clk 0:00:12]} 35. Qxg4 {[%clk 0:00:20]}  Qh6 {[%clk 0:00:11]} 36. Qg2 {[%clk 0:00:17]}  Re8 {[%clk 0:00:11]} 37. Qxd5 {[%clk 0:00:15]}  c2 {[%clk 0:00:09]} 38. Qc6 {[%clk 0:00:16]}  Re2 {[%clk 0:00:08]} 39. Rf2 {[%clk 0:00:13]}  c1=Q+ {[%clk 0:00:08]} 40. Kg2 {[%clk 0:00:12]}  Rxf2+ {[%clk 0:00:08]} 41. Kxf2 {[%clk 0:00:12]}  Qxc6 {[%clk 0:00:08]} 42. Ke2 {[%clk 0:00:12]}  Qe4+ {[%clk 0:00:08]} 43. Kf1 {[%clk 0:00:12]}  Qc1+ {[%clk 0:00:08]} 44. Kf2 {[%clk 0:00:12]}  Qce1# {[%clk 0:00:09]} 0-1


[Site "https://www.chess.com"]

[Event "Titled Tuesday Blitz August 3 2021"]
[White "Abdusattorov, Nodirbek"]
[Black "Demidov, Mikhail"]
[WhiteFideId "14204118"]
[BlackFideId "4197143"]
[WhiteElo "2662"]
[BlackElo "2598"]
[Result "1-0"]
[Round "09"]
[TimeControl "180+1"]
[Date "2021.08.03"]
[WhiteClock "0:00:36"]
[BlackClock "0:01:07"]

1. d4 {[%clk 0:03:00]}  g6 {[%clk 0:02:58]} 2. e4 {[%clk 0:02:59]}  Bg7 {[%clk 0:02:59]} 3. Nf3 {[%clk 0:02:55]}  d6 {[%clk 0:02:59]} 4. Be2 {[%clk 0:02:55]}  a6 {[%clk 0:02:59]} 5. O-O {[%clk 0:02:53]}  e6 {[%clk 0:02:59]} 6. Nc3 {[%clk 0:02:48]}  Ne7 {[%clk 0:02:59]} 7. Be3 {[%clk 0:02:45]}  h6 {[%clk 0:02:59]} 8. a4 {[%clk 0:02:41]}  b6 {[%clk 0:02:59]} 9. Qd2 {[%clk 0:02:36]}  Bb7 {[%clk 0:03:00]} 10. Rad1 {[%clk 0:02:11]}  Nd7 {[%clk 0:02:59]} 11. h3 {[%clk 0:02:11]}  g5 {[%clk 0:02:56]} 12. Nh2 {[%clk 0:02:06]}  Ng6 {[%clk 0:02:52]} 13. Bh5 {[%clk 0:02:05]}  Nf6 {[%clk 0:02:48]} 14. Bxg6 {[%clk 0:02:04]}  fxg6 {[%clk 0:02:49]} 15. f3 {[%clk 0:02:03]}  O-O {[%clk 0:02:49]} 16. Ng4 {[%clk 0:02:00]}  Nh5 {[%clk 0:02:45]} 17. Ne2 {[%clk 0:01:58]}  Qe7 {[%clk 0:02:42]} 18. c4 {[%clk 0:01:52]}  Rad8 {[%clk 0:02:38]} 19. a5 {[%clk 0:01:51]}  bxa5 {[%clk 0:02:33]} 20. Qxa5 {[%clk 0:01:50]}  Kh7 {[%clk 0:02:33]} 21. Qd2 {[%clk 0:01:36]}  Qf7 {[%clk 0:02:31]} 22. h4 {[%clk 0:01:32]}  gxh4 {[%clk 0:02:24]} 23. Bxh6 {[%clk 0:01:28]}  e5 {[%clk 0:02:10]} 24. Bxg7 {[%clk 0:01:25]}  Qxg7 {[%clk 0:02:04]} 25. dxe5 {[%clk 0:01:25]}  Bc8 {[%clk 0:02:03]} 26. Qg5 {[%clk 0:01:16]}  Kg8 {[%clk 0:01:40]} 27. Qxh4 {[%clk 0:01:11]}  Rde8 {[%clk 0:01:26]} 28. exd6 {[%clk 0:01:10]}  Qxb2 {[%clk 0:01:26]} 29. d7 {[%clk 0:01:06]}  Bxd7 {[%clk 0:01:26]} 30. Rxd7 {[%clk 0:01:07]}  Qxe2 {[%clk 0:01:26]} 31. Qg5 {[%clk 0:00:58]}  Nf4 {[%clk 0:01:26]} 32. Rf2 {[%clk 0:00:38]}  Qxc4 {[%clk 0:01:15]} 33. Nf6+ {[%clk 0:00:35]}  Rxf6 {[%clk 0:01:07]} 34. Qxf6 {[%clk 0:00:36]} 1-0


[Site "https://www.chess.com"]

[Event "Titled Tuesday Blitz August 3 2021"]
[White "Al-Tarboush, Ward"]
[Black "Aitbayev, Aslan"]
[WhiteFideId "7601450"]
[BlackFideId "13704613"]
[WhiteElo "2567"]
[BlackElo "2723"]
[Result "0-1"]
[Round "09"]
[TimeControl "180+1"]
[Date "2021.08.03"]
[WhiteClock "0:00:02"]
[BlackClock "0:00:20"]

1. e4 {[%clk 0:03:00]}  e6 {[%clk 0:02:59]} 2. d4 {[%clk 0:03:00]}  d5 {[%clk 0:03:00]} 3. exd5 {[%clk 0:03:01]}  exd5 {[%clk 0:03:00]} 4. Bd3 {[%clk 0:03:01]}  Nc6 {[%clk 0:03:00]} 5. Nf3 {[%clk 0:03:01]}  Bg4 {[%clk 0:02:59]} 6. c3 {[%clk 0:03:00]}  Bd6 {[%clk 0:03:00]} 7. Nbd2 {[%clk 0:02:55]}  Nge7 {[%clk 0:03:00]} 8. O-O {[%clk 0:02:54]}  Qd7 {[%clk 0:03:00]} 9. Re1 {[%clk 0:02:53]}  f6 {[%clk 0:03:00]} 10. Nf1 {[%clk 0:02:50]}  Bf5 {[%clk 0:02:53]} 11. Ne3 {[%clk 0:02:45]}  Bxd3 {[%clk 0:02:51]} 12. Qxd3 {[%clk 0:02:45]}  O-O {[%clk 0:02:51]} 13. Qb5 {[%clk 0:02:03]}  a6 {[%clk 0:02:33]} 14. Qb3 {[%clk 0:01:59]}  Kh8 {[%clk 0:02:31]} 15. Bd2 {[%clk 0:01:58]}  b5 {[%clk 0:02:29]} 16. a4 {[%clk 0:01:55]}  Na5 {[%clk 0:02:15]} 17. Qc2 {[%clk 0:01:54]}  Nc4 {[%clk 0:02:15]} 18. b3 {[%clk 0:01:26]}  Nxd2 {[%clk 0:02:14]} 19. Qxd2 {[%clk 0:01:25]}  c6 {[%clk 0:02:07]} 20. b4 {[%clk 0:01:19]}  bxa4 {[%clk 0:01:59]} 21. Qc2 {[%clk 0:01:09]}  a5 {[%clk 0:01:54]} 22. Qxa4 {[%clk 0:01:06]}  Bc7 {[%clk 0:01:45]} 23. Reb1 {[%clk 0:01:01]}  g6 {[%clk 0:01:32]} 24. h3 {[%clk 0:00:51]}  Rfb8 {[%clk 0:01:25]} 25. bxa5 {[%clk 0:00:35]}  Rxb1+ {[%clk 0:01:22]} 26. Rxb1 {[%clk 0:00:35]}  Rxa5 {[%clk 0:01:23]} 27. Qc2 {[%clk 0:00:32]}  Kg7 {[%clk 0:01:15]} 28. Qe2 {[%clk 0:00:28]}  Ra3 {[%clk 0:01:09]} 29. Qb2 {[%clk 0:00:26]}  Ra7 {[%clk 0:01:06]} 30. Ne1 {[%clk 0:00:24]}  Qd6 {[%clk 0:01:03]} 31. Nd3 {[%clk 0:00:21]}  Qh2+ {[%clk 0:00:51]} 32. Kf1 {[%clk 0:00:21]}  f5 {[%clk 0:00:51]} 33. Nc5 {[%clk 0:00:21]}  Kf7 {[%clk 0:00:47]} 34. f3 {[%clk 0:00:05]}  Bg3 {[%clk 0:00:39]} 35. Qb6 {[%clk 0:00:05]}  Ra2 {[%clk 0:00:38]} 36. Rb2 {[%clk 0:00:03]}  Qh1+ {[%clk 0:00:34]} 37. Ke2 {[%clk 0:00:04]}  Qe1+ {[%clk 0:00:21]} 38. Kd3 {[%clk 0:00:04]}  Bf4 {[%clk 0:00:21]} 39. Nc2 {[%clk 0:00:02]}  Qd2# {[%clk 0:00:20]} 0-1


[Site "https://www.chess.com"]

[Event "Titled Tuesday Blitz August 3 2021"]
[White "Ambartsumova, Karina"]
[Black "Shimelkov, Vasiliy"]
[WhiteFideId "4166299"]
[BlackFideId "13701630"]
[WhiteElo "2552"]
[BlackElo "2676"]
[Result "1-0"]
[Round "09"]
[TimeControl "180+1"]
[Date "2021.08.03"]
[WhiteClock "0:01:31"]
[BlackClock "0:02:12"]

1. c4 {[%clk 0:03:00]}  c5 {[%clk 0:03:00]} 2. Nc3 {[%clk 0:02:59]}  Nc6 {[%clk 0:02:59]} 3. Nf3 {[%clk 0:02:57]}  g6 {[%clk 0:02:57]} 4. d4 {[%clk 0:02:55]}  cxd4 {[%clk 0:02:57]} 5. Nxd4 {[%clk 0:02:56]}  Bg7 {[%clk 0:02:58]} 6. Nc2 {[%clk 0:02:56]}  Bxc3+ {[%clk 0:02:55]} 7. bxc3 {[%clk 0:02:57]}  d6 {[%clk 0:02:54]} 8. e4 {[%clk 0:02:47]}  Nf6 {[%clk 0:02:52]} 9. Bd3 {[%clk 0:02:36]}  O-O {[%clk 0:02:52]} 10. O-O {[%clk 0:02:28]}  b6 {[%clk 0:02:52]} 11. f4 {[%clk 0:02:24]}  Na5 {[%clk 0:02:51]} 12. e5 {[%clk 0:02:04]}  dxe5 {[%clk 0:02:45]} 13. fxe5 {[%clk 0:02:04]}  Nh5 {[%clk 0:02:46]} 14. Nd4 {[%clk 0:01:56]}  Ba6 {[%clk 0:02:42]} 15. e6 {[%clk 0:01:39]}  Bxc4 {[%clk 0:02:32]} 16. Bxc4 {[%clk 0:01:34]}  Nxc4 {[%clk 0:02:31]} 17. exf7+ {[%clk 0:01:33]}  Rxf7 {[%clk 0:02:18]} 18. Rxf7 {[%clk 0:01:32]}  Kxf7 {[%clk 0:02:12]} 19. Qf1+ {[%clk 0:01:31]} 1-0


[Site "https://www.chess.com"]

[Event "Titled Tuesday Blitz August 3 2021"]
[White "Andrews, Todd"]
[Black "Tologon tegin, Semetei"]
[WhiteFideId "2012456"]
[BlackFideId "13800574"]
[WhiteElo "2432"]
[BlackElo "2224"]
[Result "0-1"]
[Round "09"]
[TimeControl "180+1"]
[Date "2021.08.03"]
[WhiteClock "0:00:12"]
[BlackClock "0:00:08"]

1. d4 {[%clk 0:03:00]}  d5 {[%clk 0:02:58]} 2. c4 {[%clk 0:03:01]}  e6 {[%clk 0:02:58]} 3. Nc3 {[%clk 0:03:01]}  Nf6 {[%clk 0:02:57]} 4. cxd5 {[%clk 0:03:00]}  exd5 {[%clk 0:02:58]} 5. Bg5 {[%clk 0:03:01]}  Nbd7 {[%clk 0:02:58]} 6. Qc2 {[%clk 0:03:00]}  Bb4 {[%clk 0:02:57]} 7. e3 {[%clk 0:02:59]}  O-O {[%clk 0:02:56]} 8. Bd3 {[%clk 0:02:59]}  h6 {[%clk 0:02:56]} 9. Bh4 {[%clk 0:02:58]}  c5 {[%clk 0:02:55]} 10. Nf3 {[%clk 0:02:57]}  Qa5 {[%clk 0:02:44]} 11. O-O {[%clk 0:02:55]}  Bxc3 {[%clk 0:02:34]} 12. bxc3 {[%clk 0:02:54]}  c4 {[%clk 0:02:28]} 13. Bf5 {[%clk 0:02:46]}  Re8 {[%clk 0:02:28]} 14. Nd2 {[%clk 0:02:37]}  Qa6 {[%clk 0:02:15]} 15. e4 {[%clk 0:02:20]}  dxe4 {[%clk 0:02:11]} 16. Nxe4 {[%clk 0:02:19]}  Nxe4 {[%clk 0:02:09]} 17. Bxe4 {[%clk 0:02:19]}  Nf6 {[%clk 0:02:04]} 18. Bf3 {[%clk 0:02:18]}  Bg4 {[%clk 0:01:58]} 19. Bxf6 {[%clk 0:01:57]}  Bxf3 {[%clk 0:01:55]} 20. Be5 {[%clk 0:01:57]}  Bd5 {[%clk 0:01:49]} 21. Rfe1 {[%clk 0:01:54]}  Re6 {[%clk 0:01:43]} 22. Re3 {[%clk 0:01:51]}  Rg6 {[%clk 0:01:40]} 23. Bg3 {[%clk 0:01:23]}  Qc6 {[%clk 0:01:36]} 24. f4 {[%clk 0:01:17]}  Re6 {[%clk 0:01:17]} 25. Rae1 {[%clk 0:01:15]}  Rae8 {[%clk 0:01:16]} 26. Re5 {[%clk 0:01:08]}  f6 {[%clk 0:01:12]} 27. Rxe6 {[%clk 0:01:08]}  Rxe6 {[%clk 0:01:13]} 28. f5 {[%clk 0:00:53]}  Rxe1+ {[%clk 0:01:10]} 29. Bxe1 {[%clk 0:00:54]}  Be4 {[%clk 0:01:08]} 30. Qf2 {[%clk 0:00:54]}  Qd5 {[%clk 0:01:03]} 31. g4 {[%clk 0:00:51]}  b5 {[%clk 0:00:54]} 32. Bd2 {[%clk 0:00:50]}  a5 {[%clk 0:00:54]} 33. a3 {[%clk 0:00:49]}  Kh7 {[%clk 0:00:50]} 34. Qg3 {[%clk 0:00:43]}  b4 {[%clk 0:00:46]} 35. axb4 {[%clk 0:00:39]}  axb4 {[%clk 0:00:46]} 36. cxb4 {[%clk 0:00:39]}  Qxd4+ {[%clk 0:00:45]} 37. Qe3 {[%clk 0:00:40]}  Qa1+ {[%clk 0:00:44]} 38. Kf2 {[%clk 0:00:39]}  Qh1 {[%clk 0:00:44]} 39. h3 {[%clk 0:00:31]}  Qg2+ {[%clk 0:00:38]} 40. Ke1 {[%clk 0:00:32]}  Bd3 {[%clk 0:00:38]} 41. Kd1 {[%clk 0:00:31]}  Qh1+ {[%clk 0:00:32]} 42. Be1 {[%clk 0:00:29]}  Qa8 {[%clk 0:00:31]} 43. Bc3 {[%clk 0:00:26]}  Qa2 {[%clk 0:00:24]} 44. Qd2 {[%clk 0:00:23]}  Qb1+ {[%clk 0:00:22]} 45. Qc1 {[%clk 0:00:22]}  Be2+ {[%clk 0:00:21]} 46. Kd2 {[%clk 0:00:23]}  Qd3+ {[%clk 0:00:21]} 47. Ke1 {[%clk 0:00:23]}  Qf3 {[%clk 0:00:17]} 48. Kd2 {[%clk 0:00:20]}  Bd3 {[%clk 0:00:17]} 49. Qe1 {[%clk 0:00:18]}  Qg2+ {[%clk 0:00:16]} 50. Ke3 {[%clk 0:00:18]}  Qxh3+ {[%clk 0:00:16]} 51. Kd4 {[%clk 0:00:17]}  Qxg4+ {[%clk 0:00:16]} 52. Kc5 {[%clk 0:00:18]}  Qxf5+ {[%clk 0:00:16]} 53. Kd6 {[%clk 0:00:16]}  Qf4+ {[%clk 0:00:14]} 54. Kc5 {[%clk 0:00:15]}  Qc7+ {[%clk 0:00:14]} 55. Kd4 {[%clk 0:00:15]}  Qd6+ {[%clk 0:00:13]} 56. Ke3 {[%clk 0:00:16]}  h5 {[%clk 0:00:12]} 57. Qh4 {[%clk 0:00:15]}  Kg6 {[%clk 0:00:10]} 58. b5 {[%clk 0:00:14]}  Qc5+ {[%clk 0:00:10]} 59. Bd4 {[%clk 0:00:11]}  Qxb5 {[%clk 0:00:10]} 60. Qg3+ {[%clk 0:00:11]}  Kh7 {[%clk 0:00:09]} 61. Qc7 {[%clk 0:00:11]}  Qf5 {[%clk 0:00:08]} 62. Kd2 {[%clk 0:00:08]}  h4 {[%clk 0:00:08]} 63. Kc3 {[%clk 0:00:09]}  h3 {[%clk 0:00:08]} 64. Qg3 {[%clk 0:00:09]}  Qh5 {[%clk 0:00:08]} 65. Qh2 {[%clk 0:00:09]}  Kg6 {[%clk 0:00:07]} 66. Kb4 {[%clk 0:00:09]}  Kh7 {[%clk 0:00:07]} 67. Kc3 {[%clk 0:00:10]}  Qf3 {[%clk 0:00:05]} 68. Kb4 {[%clk 0:00:10]}  Qg2 {[%clk 0:00:06]} 69. Bg1 {[%clk 0:00:09]}  Qxh2 {[%clk 0:00:05]} 70. Bxh2 {[%clk 0:00:10]}  Kg6 {[%clk 0:00:06]} 71. Kc3 {[%clk 0:00:11]}  Kf5 {[%clk 0:00:07]} 72. Kd2 {[%clk 0:00:12]}  Ke4 {[%clk 0:00:07]} 73. Bg3 {[%clk 0:00:12]}  g5 {[%clk 0:00:07]} 74. Bh2 {[%clk 0:00:12]}  f5 {[%clk 0:00:08]} 0-1


[Site "https://www.chess.com"]

[Event "Titled Tuesday Blitz August 3 2021"]
[White "Anuj Shrivatri"]
[Black "Ashiev, Eduard"]
[WhiteFideId "35070924"]
[BlackFideId "4130090"]
[WhiteElo "2038"]
[BlackElo "2106"]
[Result "1-0"]
[Round "09"]
[TimeControl "180+1"]
[Date "2021.08.03"]
[WhiteClock "0:00:36"]
[BlackClock "0:00:01"]

1. c4 {[%clk 0:03:00]}  c5 {[%clk 0:02:58]} 2. g3 {[%clk 0:03:01]}  g6 {[%clk 0:02:57]} 3. Bg2 {[%clk 0:03:02]}  Bg7 {[%clk 0:02:57]} 4. Nc3 {[%clk 0:03:03]}  Nc6 {[%clk 0:02:57]} 5. Nf3 {[%clk 0:03:03]}  d6 {[%clk 0:02:57]} 6. O-O {[%clk 0:03:01]}  e5 {[%clk 0:02:57]} 7. Ne1 {[%clk 0:02:56]}  Nge7 {[%clk 0:02:55]} 8. Nc2 {[%clk 0:02:56]}  O-O {[%clk 0:02:51]} 9. Ne3 {[%clk 0:02:56]}  a6 {[%clk 0:02:50]} 10. a3 {[%clk 0:02:51]}  Rb8 {[%clk 0:02:49]} 11. b4 {[%clk 0:02:51]}  cxb4 {[%clk 0:02:47]} 12. axb4 {[%clk 0:02:51]}  Nxb4 {[%clk 0:02:46]} 13. Ba3 {[%clk 0:02:52]}  a5 {[%clk 0:02:23]} 14. Bxb4 {[%clk 0:02:31]}  axb4 {[%clk 0:02:23]} 15. Ncd5 {[%clk 0:02:30]}  Nc6 {[%clk 0:02:20]} 16. Qb3 {[%clk 0:02:27]}  f5 {[%clk 0:02:07]} 17. Nxb4 {[%clk 0:02:24]}  Nd4 {[%clk 0:01:59]} 18. Qd1 {[%clk 0:02:23]}  f4 {[%clk 0:01:57]} 19. Ned5 {[%clk 0:02:23]}  f3 {[%clk 0:01:43]} 20. exf3 {[%clk 0:02:21]}  Bf5 {[%clk 0:01:14]} 21. d3 {[%clk 0:02:14]}  Kh8 {[%clk 0:00:57]} 22. Ra7 {[%clk 0:02:01]}  Qg5 {[%clk 0:00:45]} 23. f4 {[%clk 0:01:50]}  exf4 {[%clk 0:00:37]} 24. Nxf4 {[%clk 0:01:51]}  Bd7 {[%clk 0:00:17]} 25. Nbd5 {[%clk 0:01:43]}  Bc6 {[%clk 0:00:14]} 26. h4 {[%clk 0:01:40]}  Qh6 {[%clk 0:00:11]} 27. Ne3 {[%clk 0:01:31]}  Rxf4 {[%clk 0:00:10]} 28. gxf4 {[%clk 0:01:30]}  Qxf4 {[%clk 0:00:09]} 29. Qg4 {[%clk 0:01:29]}  Qf6 {[%clk 0:00:08]} 30. Bxc6 {[%clk 0:01:27]}  bxc6 {[%clk 0:00:08]} 31. f4 {[%clk 0:01:24]}  Rf8 {[%clk 0:00:07]} 32. Kg2 {[%clk 0:01:18]}  Nf5 {[%clk 0:00:07]} 33. Nxf5 {[%clk 0:01:17]}  gxf5 {[%clk 0:00:07]} 34. Qg5 {[%clk 0:01:16]}  Qd4 {[%clk 0:00:07]} 35. Qe7 {[%clk 0:01:13]}  Rg8 {[%clk 0:00:07]} 36. Kh2 {[%clk 0:00:56]}  Qxd3 {[%clk 0:00:05]} 37. Rf2 {[%clk 0:00:49]}  Qd4 {[%clk 0:00:04]} 38. Raa2 {[%clk 0:00:38]}  Qxc4 {[%clk 0:00:03]} 39. h5 {[%clk 0:00:38]}  Bd4 {[%clk 0:00:02]} 40. Rg2 {[%clk 0:00:37]}  Rxg2+ {[%clk 0:00:01]} 41. Rxg2 {[%clk 0:00:36]} 1-0


[Site "https://www.chess.com"]

[Event "Titled Tuesday Blitz August 3 2021"]
[White "Batsuren, Dambasuren"]
[Black "Martinez Alcantara, Jose Eduardo"]
[WhiteFideId "4902920"]
[BlackFideId "3805662"]
[WhiteElo "2371"]
[BlackElo "2690"]
[Result "0-1"]
[Round "09"]
[TimeControl "180+1"]
[Date "2021.08.03"]
[WhiteClock "0:00:01"]
[BlackClock "0:01:22"]

1. d4 {[%clk 0:03:00]}  Nf6 {[%clk 0:02:58]} 2. c4 {[%clk 0:03:01]}  e6 {[%clk 0:02:59]} 3. Nc3 {[%clk 0:03:01]}  Bb4 {[%clk 0:02:59]} 4. Bd2 {[%clk 0:03:00]}  b6 {[%clk 0:02:58]} 5. e3 {[%clk 0:02:59]}  Bb7 {[%clk 0:02:58]} 6. Nf3 {[%clk 0:03:00]}  O-O {[%clk 0:02:57]} 7. Bd3 {[%clk 0:03:00]}  Bxc3 {[%clk 0:02:58]} 8. Bxc3 {[%clk 0:03:01]}  Ne4 {[%clk 0:02:58]} 9. Rc1 {[%clk 0:03:00]}  Nxc3 {[%clk 0:02:57]} 10. Rxc3 {[%clk 0:03:01]}  d6 {[%clk 0:02:58]} 11. O-O {[%clk 0:03:01]}  Nd7 {[%clk 0:02:59]} 12. e4 {[%clk 0:02:50]}  e5 {[%clk 0:02:53]} 13. d5 {[%clk 0:02:47]}  a5 {[%clk 0:02:52]} 14. b3 {[%clk 0:02:45]}  c5 {[%clk 0:02:48]} 15. Bc2 {[%clk 0:02:26]}  Nf6 {[%clk 0:02:38]} 16. Nd2 {[%clk 0:02:23]}  Bc8 {[%clk 0:02:35]} 17. Rg3 {[%clk 0:02:23]}  Qe7 {[%clk 0:02:31]} 18. Re1 {[%clk 0:01:33]}  g6 {[%clk 0:02:28]} 19. Nf1 {[%clk 0:01:33]}  Kh8 {[%clk 0:02:26]} 20. Rge3 {[%clk 0:01:25]}  Bd7 {[%clk 0:02:24]} 21. Ng3 {[%clk 0:01:22]}  b5 {[%clk 0:02:21]} 22. cxb5 {[%clk 0:01:16]}  Bxb5 {[%clk 0:02:21]} 23. h4 {[%clk 0:01:13]}  Bd7 {[%clk 0:02:18]} 24. f3 {[%clk 0:01:03]}  h5 {[%clk 0:02:18]} 25. Ne2 {[%clk 0:00:46]}  Nh7 {[%clk 0:02:15]} 26. g3 {[%clk 0:00:46]}  Rg8 {[%clk 0:02:12]} 27. Kf2 {[%clk 0:00:44]}  Raf8 {[%clk 0:02:13]} 28. Rh1 {[%clk 0:00:37]}  f5 {[%clk 0:02:12]} 29. exf5 {[%clk 0:00:38]}  gxf5 {[%clk 0:02:11]} 30. Nf4 {[%clk 0:00:20]}  Qg7 {[%clk 0:01:50]} 31. Nxh5 {[%clk 0:00:15]}  Qh6 {[%clk 0:01:50]} 32. f4 {[%clk 0:00:13]}  Be8 {[%clk 0:01:49]} 33. fxe5 {[%clk 0:00:05]}  Bxh5 {[%clk 0:01:49]} 34. Qd3 {[%clk 0:00:05]}  f4 {[%clk 0:01:43]} 35. Re4 {[%clk 0:00:01]}  fxg3+ {[%clk 0:01:33]} 36. Kg2 {[%clk 0:00:01]}  Rf2+ {[%clk 0:01:33]} 37. Kh3 {[%clk 0:00:01]}  Bf3 {[%clk 0:01:22]} 38. exd6 {[%clk 0:00:01]}  Ng5+ {[%clk 0:01:22]} 0-1


[Site "https://www.chess.com"]